[Event "Israel National League 2024"]
[Site "Israel"]
[Date "2024.03.01"]
[Round "9.9"]
[White "Manor, Ilan"]
[Black "Steinberg, Nitzan"]
[Result "0-1"]
[ECO "A28"]
[WhiteElo "2469"]
[BlackElo "2551"]
[Annotator "TA"]
[PlyCount "78"]
[EventDate "2024.01.07"]
[EventType "team-tourn"]
[EventCountry "ISR"]
[SourceTitle "playchess.com"]
[Source "ChessBase"]
[SourceQuality "1"]
[TimeControl "40/5400+30:1800+30"]

{[%evp 14,78,-16,-33,-19,0,28,-28,-20,-31,-22,0,0,0,0,0,4,0,12,-14,0,-2,5,0,0,0,0,-49,-47,-50,-54,-50,-48,-62,-33,-33,-43,-122,-125,-263,-261,-286,-281,-293,-294,-296,-292,-300,-318,-296,-319,-337,-312,-307,-302,-324,-324,-322,-310,-369,-355,-348,-352,-511,-466,-1013,-981]} 1. c4 {[%emt 0:09:07]} Nf6 {[%emt 0:01:15]} 2. Nc3 {[%emt 0:04:23]} e5 {[%emt 0:00:32]} 3. Nf3 {[%emt 0:01:02]} Nc6 {[%emt 0:00:11]} 4. d4 {[%emt 0:04:36]} exd4 {[%emt 0:08:32]} 5. Nxd4 {[%emt 0:00:05]} Bb4 {[%emt 0:03:56]} 6. Bg5 {[%emt 0:00:06][%cal Bc1g5,Bg5h4,Bh4g3][%mdl 32]} h6 {[%emt 0:01:51]} 7. Bh4 {[%emt 0:00:17]} O-O {[%emt 0:07:57]} 8. Rc1 {[%emt 0:02:14]} g5 {[%emt 0:02:59]} 9. Bg3 {[%emt 0:01:24]} Ne4 {[%emt 0:03:34]} 10. e3 {[%emt 0:11:30]} ({White should try} 10. f3 $1 Nxc3 11. bxc3) 10... Re8 $11 {[%emt 0:01:06] Black has an edge.} 11. Ndb5 {[%emt 0:06:49]} a6 $1 {[%emt 0:02:20]} 12. a3 $1 {[%emt 0:06:35]} Nxg3 {[%emt 0:05:40]} 13. hxg3 {[%emt 0:00:15]} Bf8 {[%emt 0:00:05]} 14. Nd4 {[%emt 0:01:16]} d6 {[%emt 0:00:50]} 15. Be2 {[%emt 0:02:09]} Bg7 {[%emt 0:04:22]} 16. Nb3 {[%emt 0:05:19]} Ne5 {[%emt 0:05:34]} 17. Qc2 {[%emt 0:20:07]} c6 {[%emt 0:08:10]} 18. Rd1 {[%emt 0:04:00]} Qe7 {[%emt 0:03:59]} 19. Nd4 {[%emt 0:01:58]} Bd7 {[%emt 0:08:36]} 20. Nf5 {[%emt 0:00:56]} (20. a4 $11 {might be stronger.}) 20... Bxf5 $15 {[%emt 0:00:22]} 21. Qxf5 {[%emt 0:00:03]} b5 {[%emt 0:01:23]} 22. cxb5 {[%emt 0:10:41]} axb5 {[%emt 0:00:17]} 23. Bd3 {[%emt 0:04:12]} Nxd3+ {[%emt 0:02:29]} 24. Qxd3 {[%emt 0:00:30]} d5 {[%emt 0:00:25] [#] Strongly threatening ...d4.} 25. Ne2 {[%emt 0:00:22]} (25. O-O $15) 25... Ra4 $17 {[%emt 0:05:43] Black is more active.} ({But not} 25... Bxb2 $6 26. Rxh6 Bf6 27. Qh7+ Kf8 28. Kf1 $11) 26. O-O {[%emt 0:01:17] White does not recover from this.} (26. Rc1 $17 Rc4 (26... Bxb2 27. Rxh6 Rxa3 28. Qh7+ Kf8 29. Rhxc6 $11) 27. Qd2) 26... Bxb2 $19 {[%emt 0:00:44][%cal Bg7b2,Bb2a3,Ba3c5,Bc5b6][%mdl 32]} 27. Qc2 {[%emt 0:01:32]} Qf6 {[%emt 0:00:08]} ({Not} 27... Bxa3 28. Qxc6 Ra5 29. Qxh6 $16) 28. Rb1 {[%emt 0:00:47]} Bxa3 {[%emt 0:02:02]} 29. Nd4 {[%emt 0:00:13]} Rc4 {[%emt 0:00:25]} 30. Qd3 {[%emt 0:00:06]} Bc5 {[%emt 0:01:26]} 31. Nb3 {[%emt 0:01:21]} Bb6 {[%emt 0:03:49]} 32. Ra1 {[%emt 0:00:05]} Qc3 {[%emt 0:01:10]} 33. Qd1 {[%emt 0:00:47]} Qc2 {[%emt 0:01:13]} 34. Ra6 {[%emt 0:00:33] [#] Black must now prevent Qxc2.} Qxd1 {[%emt 0:02:28]} 35. Rxd1 {[%emt 0:00:05]} Rb8 {[%emt 0:00:19]} 36. Nd2 {[%emt 0:00:47]} Ra4 {[%emt 0:02:43]} 37. Rxa4 {[%emt 0:00:34]} bxa4 {[%emt 0:00:00]} 38. Rc1 {[%emt 0:00:02] Wards off Bc5} (38. Ra1 $142 Ra8 (38... Ba5 $2 39. Nf3 $19) 39. Kf1) 38... a3 {[%emt 0:02:41] ...Ba5 is the strong threat.} 39. Rxc6 {[%emt 0:01:19]} (39. Ra1 $142 Bc5 40. Ra2) 39... a2 {[%emt 0:00:52] Weighted Error Value: White=0.36/Black=0.05 (flawless) .  Mistake:       	White=6     	---        Inaccurate:     	White=1     	Black=2      OK:         	White=9     	Black=15     Best:        	---       	Black=4      Strong:       	White=1     	Black=1} 0-1

[Event "Israel National League 2024"]
[Site "Israel"]
[Date "2024.03.01"]
[Round "9.10"]
[White "Mikhalevski, Victor"]
[Black "Zifroni, Dov"]
[Result "1/2-1/2"]
[ECO "E04"]
[WhiteElo "2524"]
[BlackElo "2462"]
[Annotator "TA"]
[PlyCount "56"]
[EventDate "2024.01.07"]
[EventType "team-tourn"]
[EventCountry "ISR"]
[SourceTitle "playchess.com"]
[Source "ChessBase"]
[SourceQuality "1"]
[TimeControl "40/5400+30:1800+30"]

{[%evp 12,56,20,14,7,18,22,13,12,8,10,3,28,25,34,40,22,0,34,-26,22,21,22,14,40,45,43,37,37,0,0,-5,-8,-8,-8,-55,-63,-73,-62,-42,0,0,0,0,0,0,-2]} 1. Nf3 {[%emt 0:00:01]} d5 {[%emt 0:08:11]} 2. g3 {[%emt 0:00:12]} c5 {[%emt 0:00:12]} 3. Bg2 {[%emt 0:00:13]} Nc6 {[%emt 0:00:08]} 4. d4 {[%emt 0:00:14]} e6 {[%emt 0:00:21]} 5. O-O {[%emt 0:00:35]} Nf6 {[%emt 0:00:05]} 6. c4 {[%emt 0:00:55]} dxc4 {[%emt 0:00:07]} 7. dxc5 {[%emt 0:00:35]} Qxd1 {[%emt 0:00:08]} 8. Rxd1 {[%emt 0:00:05]} Bxc5 {[%emt 0:00:07]} 9. Nfd2 {[%emt 0:00:13]} Na5 {[%emt 0:00:25]} 10. Na3 {[%emt 0:00:32]} Bxa3 {[%emt 0:00:32]} 11. bxa3 {[%emt 0:00:06]} Bd7 {[%emt 0:04:59]} 12. Bb2 {[%emt 0:00:45][%mdl 1024] White has compensation.} Rc8 {[%emt 0:00:20] [#] aiming for ...c3.} 13. Bc3 {[%emt 0:00:38] A strong pair of Bishops.} b6 {[%emt 0:00:07]} 14. Rdc1 {[%emt 0:03:23]} O-O {[%emt 0:24:53]} 15. Rab1 {[%emt 0:10:12] Inhibits Bb5.} ({White should try} 15. Bxa5 $14 bxa5 16. Nxc4) 15... Rc7 {[%emt 0:08:35]} (15... Nd5 $142 16. Bxa5 c3) 16. Bxa5 $11 {[%emt 0:07:25]} bxa5 {[%emt 0:00:05]} 17. Nxc4 {[%emt 0:00:12]} Rc5 {[%emt 0:06:49]} 18. Nd6 {[%emt 0:20:43] Prevents Rfc8} Rxc1+ {[%emt 0:00:14]} 19. Rxc1 {[%emt 0:00:04]} Rb8 {[%emt 0:00:32]} 20. h3 {[%emt 0:03:49]} Kf8 {[%emt 0:17:51]} 21. Rc7 {[%emt 0:08:39]} Rb1+ {[%emt 0:03:03]} 22. Kh2 {[%emt 0:01:15][%cal Oe2e4]} Rb2 {[%emt 0:00:19][%csl LRa2,LRe2]} 23. Bf3 {[%emt 0:26:08]} (23. Rxa7 $11 {should be considered.} Rxe2 24. Kg1) 23... Ke7 $15 {[%emt 0:07:32]} 24. Nb7 {[%emt 0:01:06]} a4 {[%emt 0:01:47]} 25. Na5 {[%emt 0:02:40]} Rxa2 {[%emt 0:00:49]} 26. Rxa7 {[%emt 0:00:09] The position is equal.} Rxa3 {[%emt 0:04:24] Strongly threatening ...Rc3.} 27. Nc4 {[%emt 0:00:38]} Rc3 {[%emt 0:02:29]} 28. Ne5 {[%emt 0:13:03]} a3 {[%emt 0:09:26] Weighted Error Value: White=0.10 (very precise) /Black=0.11 (very precise) .  Mistake:       	White=2     	Black=1      Inaccurate:     	White=1     	Black=3      OK:         	White=8     	Black=9      Best:        	White=4     	---} 1/2-1/2

[Event "Israel National League 2024"]
[Site "Israel"]
[Date "2024.03.01"]
[Round "9.11"]
[White "Soffer, Ram"]
[Black "Kobo, Ori"]
[Result "0-1"]
[ECO "A48"]
[WhiteElo "2431"]
[BlackElo "2541"]
[Annotator "TA"]
[PlyCount "98"]
[EventDate "2024.01.07"]
[EventType "team-tourn"]
[EventCountry "ISR"]
[SourceTitle "playchess.com"]
[Source "ChessBase"]
[SourceQuality "1"]
[TimeControl "40/5400+30:1800+30"]

{[%evp 12,98,16,0,15,0,0,0,19,0,6,0,0,0,16,0,0,0,2,-29,-15,-5,-5,-18,-15,-20,0,0,0,0,0,0,0,0,17,12,10,9,0,9,8,14,0,0,0,0,16,27,16,-379,-390,-388,-362,-441,-443,-437,-425,-700,-310,-414,-413,-417,-417,-417,-417,-417,-396,-469,-463,-463,-486,-491,-475,-551,-471,-466,-469,-559,-540,-563,-544,-2321,-941,-934,-934,-2292,-1741,-5618,-935]} 1. Nf3 {[%emt 0:08:12]} Nf6 {[%emt 0:00:36]} 2. b3 {[%emt 0:00:38]} g6 {[%emt 0:02:37]} 3. Bb2 {[%emt 0:00:48]} Bg7 {[%emt 0:00:34]} 4. d4 {[%emt 0:01:36]} d6 {[%emt 0:03:03]} 5. e3 {[%emt 0:01:51]} O-O {[%emt 0:00:40]} 6. Be2 {[%emt 0:00:42]} a5 {[%emt 0:08:42] A48: 1 d4 Nf6 2 Nf3 g6: Torre, London and Colle Systems.} 7. a4 {[%emt 0:07:42]} Bf5 {[%emt 0:02:24]} 8. O-O {[%emt 0:00:23]} Nc6 $146 {[%emt 0:01:46]} ({Predecessor:} 8... Na6 9. c4 c5 10. Nbd2 Nb4 11. Nh4 Bc2 12. Qc1 Bd3 13. Bxd3 Nxd3 14. Qc2 Nxb2 15. Qxb2 cxd4 16. exd4 {0-1 Gasparyan,M (1690)-Yagutian,M (1747) Wch U18 Girls blitz 2023 (6)}) 9. Na3 {[%emt 0:00:39]} Re8 {[%emt 0:09:37]} 10. Nc4 {[%emt 0:05:07]} Nb4 {[%emt 0:05:04]} 11. Rc1 {[%emt 0:03:30]} Na2 {[%emt 0:01:36]} 12. Ra1 {[%emt 0:00:06]} Nb4 {[%emt 0:00:09]} 13. Rc1 {[%emt 0:00:25]} c6 {[%emt 0:02:48]} 14. c3 {[%emt 0:05:05]} Nbd5 {[%emt 0:00:52]} 15. Nh4 {[%emt 0:01:05]} Bd7 {[%emt 0:01:39]} 16. Nf3 {[%emt 0:02:41]} b5 {[%emt 0:08:09]} 17. axb5 {[%emt 0:00:22]} cxb5 {[%emt 0:00:04]} 18. Ncd2 {[%emt 0:00:12]} a4 {[%emt 0:00:55]} (18... Ng4 {keeps more tension.} 19. e4 Nf4 20. Re1 a4) 19. bxa4 {[%emt 0:05:28]} bxa4 {[%emt 0:02:30]} 20. Ba3 {[%emt 0:00:45]} Qa5 {[%emt 0:01:41]} 21. Nc4 {[%emt 0:02:37]} Qc7 {[%emt 0:04:57]} (21... Nxc3 $6 22. Nxa5 Nxd1 23. Nc4 $16) 22. Nfd2 {[%emt 0:02:01]} Rab8 {[%emt 0:08:41]} 23. Re1 {[%emt 0:03:53]} Bb5 {[%emt 0:12:14]} 24. Nxd6 {[%emt 0:10:47]} exd6 {[%emt 0:00:12]} 25. Bxb5 $1 {[%emt 0:00:46]} (25. c4 Nxe3 26. cxb5 Nxd1 $17) 25... Rxb5 {[%emt 0:00:29]} 26. c4 {[%emt 0:00:05]} (26. Qxa4 $2 Ra5 (26... Nxc3 $2 27. Qxb5 Nxb5 28. Rxc7 $19) 27. Qb3 Rb8 $19) 26... Nxe3 $1 {[%emt 0:00:44]} 27. Rxe3 {[%emt 0:03:03]} (27. cxb5 $2 Nxd1 28. Rxc7 Rxe1+ $19) 27... Rbb8 {[%emt 0:06:49]} 28. Rxe8+ {[%emt 0:05:37]} Rxe8 {[%emt 0:06:00]} 29. Qxa4 {[%emt 0:01:31]} Bh6 {[%emt 0:00:12]} 30. Qd1 $2 {[%emt 0:00:50][%mdl 8192]} (30. Bb4 $11 {and White has nothing to worry.}) 30... Qa5 $19 {[%emt 0:00:56]} 31. Bxd6 {[%emt 0:03:20]} Bxd2 {[%emt 0:01:57]} ({Resist} 31... Qxd2 32. Qxd2 Bxd2 33. Rb1) 32. Ra1 {[%emt 0:00:19]} Qc3 {[%emt 0:01:31]} 33. Be5 {[%emt 0:01:31]} Ng4 {[%emt 0:04:11]} 34. Qa4 {[%emt 0:03:12]} (34. Rb1 $142 Nxe5 35. dxe5) 34... Rf8 {[%emt 0:00:19]} (34... Rxe5 $142 35. dxe5 Be1 (35... Qxe5 $2 36. Qa8+ Kg7 37. g3 $19) (35... Nxe5 36. Rb1 $17)) 35. Rd1 {[%emt 0:01:53]} Nxe5 {[%emt 0:00:26]} 36. dxe5 {[%emt 0:00:08]} Qxe5 {[%emt 0:01:17]} 37. g3 {[%emt 0:01:25]} Bg5 {[%emt 0:00:31]} 38. Qc6 {[%emt 0:00:57]} Be7 {[%emt 0:00:29]} 39. Rd5 {[%emt 0:01:04]} Qe1+ {[%emt 0:00:17]} 40. Kg2 {[%emt 0:00:00]} Qe4+ {[%emt 0:00:20]} 41. Kg1 {[%emt 0:30:23]} Kg7 {[%emt 0:31:30]} 42. Qb5 {[%emt 0:01:28]} Bf6 {[%emt 0:00:00]} 43. Rd1 {[%emt 0:00:00]} Rc8 {[%emt 0:00:00]} 44. Rc1 {[%emt 0:00:00]} Bd4 {[%emt 0:00:00]} 45. Qb3 {[%emt 0:00:00]} Rc6 {[%emt 0:00:00]} 46. Qd1 {[%emt 0:00:00]} h5 {[%emt 0:00:00]} (46... Bxf2+ $142 47. Kxf2 Rf6+ (47... Rxc4 48. Rxc4 Qxc4 49. Qa1+ Kh6 50. Qe5 $15) 48. Kg1 Qe3+ 49. Kh1 Rf2) 47. Rc2 $19 {[%emt 0:00:00]} Rf6 {[%emt 0:00:00]} 48. c5 {[%emt 0:00:00]} Qd5 {[%emt 0:00:00]} 49. Qc1 {[%emt 0:00:00]} Qf5 {[%emt 0:00:00]} (49... h4 $142 50. c6 Qf3 (50... h3 $2 51. Qf1 $19)) 0-1

[Event "Israel National League 2024"]
[Site "Israel"]
[Date "2024.03.01"]
[Round "9.12"]
[White "Huzman, Alexander"]
[Black "Ganor, Dotan"]
[Result "1/2-1/2"]
[ECO "E05"]
[WhiteElo "2534"]
[BlackElo "2229"]
[Annotator "TA"]
[PlyCount "64"]
[EventDate "2024.01.07"]
[EventType "team-tourn"]
[EventCountry "ISR"]
[SourceTitle "playchess.com"]
[Source "ChessBase"]
[SourceQuality "1"]
[TimeControl "40/5400+30:1800+30"]

{[%evp 18,64,14,12,31,16,19,25,27,16,16,18,20,4,22,11,22,21,16,8,10,0,0,-16,0,0,0,0,0,-9,0,0,0,0,0,-4,0,0,-6,-15,0,0,0,0,0,0,0,0,0]} 1. Nf3 {[%emt 0:00:03]} d5 {[%emt 0:08:16]} 2. g3 {[%emt 0:00:25]} Nf6 {[%emt 0:00:23]} 3. Bg2 {[%emt 0:00:56]} e6 {[%emt 0:00:37]} 4. O-O {[%emt 0:00:43]} Be7 {[%emt 0:00:21]} 5. c4 {[%emt 0:01:22]} O-O {[%emt 0:00:23]} 6. d4 {[%emt 0:00:05]} dxc4 {[%emt 0:03:09]} 7. Qc2 {[%emt 0:01:10]} a6 {[%emt 0:02:05]} 8. a4 {[%emt 0:00:26]} Bd7 {[%emt 0:03:37]} 9. Qxc4 {[%emt 0:01:06]} Bc6 {[%emt 0:03:14]} 10. Bg5 {[%emt 0:01:14]} h6 {[%emt 0:07:27] [#] Strongly threatening ...Bd5.} 11. Bxf6 {[%emt 0:02:27]} Bxf6 {[%emt 0:00:02]} 12. Nc3 {[%emt 0:00:16]} a5 {[%emt 0:08:34] White has an edge.} 13. e4 {[%emt 0:06:26]} Na6 {[%emt 0:02:01] The position is equal.} 14. Rfd1 {[%emt 0:00:58]} Nb4 {[%emt 0:00:34]} 15. Qe2 {[%emt 0:02:18]} Re8 {[%emt 0:07:15]} 16. Rac1 {[%emt 0:02:36]} g6 {[%emt 0:07:41]} 17. h4 {[%emt 0:01:39]} Bg7 {[%emt 0:06:05]} 18. Qe3 {[%emt 0:02:29]} Qe7 {[%emt 0:01:49]} 19. Qf4 {[%emt 0:12:46]} Rad8 {[%emt 0:07:05]} 20. Ne5 {[%emt 0:10:54]} Bxe5 {[%emt 0:04:04]} 21. Qxe5 {[%emt 0:00:28]} b6 {[%emt 0:00:57]} 22. Qf4 {[%emt 0:17:17]} Rxd4 {[%emt 0:06:01]} 23. Qxh6 {[%emt 0:01:02]} Rxd1+ {[%emt 0:01:36]} 24. Rxd1 {[%emt 0:00:15]} Rd8 {[%emt 0:00:21]} 25. Rxd8+ {[%emt 0:03:44]} Qxd8 {[%emt 0:00:02]} 26. h5 {[%emt 0:00:05]} gxh5 {[%emt 0:01:31]} 27. e5 {[%emt 0:15:49]} Bxg2 {[%emt 0:01:06]} 28. Kxg2 {[%emt 0:00:03]} Qd4 {[%emt 0:00:47] Against Ne4} 29. Qg5+ {[%emt 0:05:40]} Kf8 {[%emt 0:00:13] [#] White must now prevent ...Nd3.} 30. Qh6+ {[%emt 0:00:14]} Kg8 {[%emt 0:05:40]} 31. Qg5+ {[%emt 0:00:48]} Kf8 {[%emt 0:00:05] Hoping for ...Nd3.} 32. Qh6+ {[%emt 0:00:08]} Kg8 {[%emt 0:01:18] An interesting draw.   Weighted Error Value: White=0.03 (flawless) /Black=0.05 (flawless) .  OK:         	White=11    	Black=11} 1/2-1/2

[Event "Israel National League 2024"]
[Site "Israel"]
[Date "2024.03.01"]
[Round "9.13"]
[White "Gorshtein, Ido"]
[Black "Dardha, Daniel"]
[Result "1-0"]
[ECO "A29"]
[WhiteElo "2523"]
[BlackElo "2602"]
[Annotator "TA"]
[PlyCount "101"]
[EventDate "2024.01.07"]
[EventType "team-tourn"]
[EventCountry "ISR"]
[SourceTitle "playchess.com"]
[Source "ChessBase"]
[SourceQuality "1"]
[TimeControl "40/5400+30:1800+30"]

{[%evp 12,101,20,32,32,28,35,43,60,37,37,38,47,29,53,49,47,0,37,36,35,39,54,30,25,29,27,9,9,0,0,0,0,0,0,0,0,0,0,0,0,0,0,0,7,-35,-31,-136,-135,-121,-122,-181,-138,-131,-158,-154,0,-90,-58,-73,-45,-68,-66,-129,-129,-150,-90,-178,-162,-213,-125,-127,-119,-241,-169,-160,-54,-218,0,0,0,-222,101,116,29982,29983,29992,29993,29994,29992,29995,29996]} 1. c4 {[%emt 0:00:06]} e5 {[%emt 0:01:58]} 2. g3 {[%emt 0:00:20]} d5 {[%emt 0:03:44]} 3. cxd5 {[%emt 0:00:11]} Qxd5 {[%emt 0:00:04]} 4. Nf3 {[%emt 0:00:12]} Nc6 {[%emt 0:00:10]} 5. Nc3 {[%emt 0:00:29]} Qd8 {[%emt 0:00:06]} 6. Bg2 {[%emt 0:00:18]} Nf6 {[%emt 0:01:38]} 7. O-O {[%emt 0:00:27]} h6 {[%emt 0:01:07] [#]} 8. b4 $1 {[%emt 0:06:14]} a6 {[%emt 0:15:49]} (8... e4 9. Ne1) 9. a3 {[%emt 0:02:09]} Bd6 {[%emt 0:06:58] White is slightly better.} 10. d3 {[%emt 0:05:44]} O-O {[%emt 0:00:38]} 11. Bb2 {[%emt 0:00:06]} Re8 {[%emt 0:17:40]} 12. Rc1 {[%emt 0:01:18]} Bf5 {[%emt 0:04:45]} 13. Nd2 {[%emt 0:03:32]} Qd7 {[%emt 0:00:53]} 14. Bxc6 {[%emt 0:12:23]} (14. Re1 $14 {might be stronger.}) 14... Qxc6 {[%emt 0:08:13] [#]} 15. Nce4 $1 {[%emt 0:00:29]} Qd7 {[%emt 0:00:11]} 16. Nxf6+ {[%emt 0:00:28]} gxf6 {[%emt 0:00:02]} 17. Ne4 {[%emt 0:00:48]} Bxe4 {[%emt 0:04:30]} 18. dxe4 {[%emt 0:00:10]} a5 {[%emt 0:00:10]} 19. bxa5 {[%emt 0:08:16]} Rxa5 {[%emt 0:04:07]} 20. Rc3 {[%emt 0:00:05]} Qg4 {[%emt 0:05:31]} 21. Qc2 {[%emt 0:02:32]} Rea8 {[%emt 0:00:16]} 22. Bc1 {[%emt 0:05:36]} Ra4 {[%emt 0:01:24]} 23. f3 {[%emt 0:01:54]} Qe6 {[%emt 0:00:23]} 24. Rd1 {[%emt 0:04:30]} (24. Bxh6 Rxa3 25. Be3 b5 $19) 24... h5 {[%emt 0:01:48]} 25. Rdd3 {[%emt 0:02:00]} Rd4 {[%emt 0:05:38][%cal Oh5h4]} 26. Kg2 {[%emt 0:01:45]} c5 {[%emt 0:01:47]} 27. Be3 {[%emt 0:02:28]} Rxd3 {[%emt 0:01:46]} 28. exd3 {[%emt 0:01:32][%cal Oc2b2]} (28. Qxd3 {simplifies} c4 29. Qxc4 Rxa3 30. Qxe6 fxe6 31. Rxa3 Bxa3 32. Bb6) 28... b5 {[%emt 0:01:09]} 29. Bf2 {[%emt 0:22:43]} (29. Bxc5 $2 {is the wrong capture.} b4 30. Bxb4 (30. axb4 $2 {perishes.} Ra2 $19) 30... Bxb4 $19) (29. Qb3 $15) 29... b4 $17 {[%emt 0:04:53]} 30. axb4 {[%emt 0:00:11]} cxb4 {[%emt 0:00:05]} 31. Rc4 {[%emt 0:00:53]} (31. Rb3 $17 {was called for.}) 31... Rb8 {[%emt 0:01:27]} 32. Qb3 {[%emt 0:16:41]} Bf8 {[%emt 0:00:40]} 33. h3 {[%emt 0:00:00]} Rb7 $2 {[%emt 0:02:04]} ({Better is} 33... Ra8 $1 $17 {...Ra3 is the strong threat.} 34. f4 exf4 35. gxf4 f5) 34. g4 {[%emt 0:00:00]} (34. Qa4 $1 $11 Rb8 35. Rc2) 34... hxg4 {[%emt 0:00:08]} 35. hxg4 {[%emt 0:00:00]} Kg7 {[%emt 0:00:59]} 36. Be3 {[%emt 0:00:00]} Rb8 {[%emt 0:01:40]} 37. Kg3 {[%emt 0:00:00]} (37. Rc3 $15) 37... Be7 $1 {[%emt 0:01:09]} 38. Kg2 {[%emt 0:00:00]} Ra8 {[%emt 0:00:30]} (38... Rd8 $142 39. Qc2 Qa6) 39. Qb1 {[%emt 0:00:00]} (39. Kg3 $17) 39... Qa6 $19 {[%emt 0:02:10] aiming for ...Qa2+.} 40. Kg3 {[%emt 0:00:00]} (40. Qd1 $142) 40... Qb5 {[%emt 0:01:42]} (40... Rc8 $19 41. Rxc8 Qxc8) 41. Rc3 {[%emt 0:05:20]} Rh8 {[%emt 0:06:55]} 42. Qb3 {[%emt 0:03:26]} (42. Kg2 $17) 42... Bd6 {[%emt 0:04:07]} 43. Rc1 {[%emt 0:00:35]} Qb7 {[%emt 0:01:30]} (43... Qb8 $1 $17 {White must now prevent ...Rh7.} 44. Ra1 Bc7) 44. Ra1 $2 {[%emt 0:04:37]} ({White should try} 44. Kg2 $15) 44... Ra8 {[%emt 0:06:38]} 45. Rh1 {[%emt 0:00:04]} Rh8 {[%emt 0:01:57] Against Bh6+} 46. Ra1 {[%emt 0:00:02]} Qb5 $2 {[%emt 0:02:16]} (46... Qe7 $1 $19 {[%cal Of6f5] Hoping for ...f5!} 47. Ra7 Bc7) 47. Ra7 $36 {[%emt 0:00:47][%mdl 2048] White is on the roll. White is more active.} Rf8 {[%emt 0:00:07][%mdl 8192] [#]} (47... Qe8 $16) 48. Qe6 $1 {[%emt 0:08:22] White mates.} Bc5 {[%emt 0:10:00] [#]} 49. Bh6+ $1 {[%emt 0:01:48][%mdl 512]} Kxh6 {[%emt 0:00:41]} (49... Kg6 50. Qf5+) 50. Qxf6+ {[%emt 0:00:48]} Kh7 {[%emt 0:00:02]} 51. Ra1 {[%emt 0:00:22] Weighted Error Value: White=0.26 (precise) /Black=0.52.  Loses game:     	White=1     	Black=1      Missed win:     	---       	Black=1      Mistake:       	White=8     	Black=4      Inaccurate:     	White=1     	Black=3      OK:         	White=9     	Black=13     Best:        	White=2     	---        Strong:       	White=1     	Black=1} 1-0